[Event "Late-Titled-Tuesday-Blitz-February-06-2024"]
[Site "Chess.com"]
[Date "2024.02.06"]
[Round "4"]
[White "yaguigor"]
[Black "Levanzovsky"]
[Result "0-1"]
[WhiteElo "2710"]
[BlackElo "2542"]
[TimeControl "180+1"]
[EndTime "14:40:01 PST"]
[Termination "Levanzovsky won by resignation"]

1. Nf3 {[%clk 0:03:00.9]} 1... Nf6 {[%clk 0:02:59.5]} 2. c4 {[%clk 0:03:00]}
2... c5 {[%clk 0:02:59.1]} 3. Nc3 {[%clk 0:02:59.3]} 3... e6 {[%clk 0:02:56.3]}
4. g3 {[%clk 0:02:58]} 4... b6 {[%clk 0:02:50.5]} 5. Bg2 {[%clk 0:02:57.3]} 5...
Bb7 {[%clk 0:02:46.6]} 6. O-O {[%clk 0:02:57.3]} 6... Be7 {[%clk 0:02:44.9]} 7.
Re1 {[%clk 0:02:56.8]} 7... a6 {[%clk 0:02:44.2]} 8. e4 {[%clk 0:02:56.3]} 8...
d6 {[%clk 0:02:44.5]} 9. d4 {[%clk 0:02:56.3]} 9... cxd4 {[%clk 0:02:44.6]} 10.
Nxd4 {[%clk 0:02:56.9]} 10... Qc7 {[%clk 0:02:40.8]} 11. Be3 {[%clk 0:02:56.2]}
11... Nbd7 {[%clk 0:02:40.4]} 12. Rc1 {[%clk 0:02:55.4]} 12... h5 {[%clk
0:02:37.5]} 13. h3 {[%clk 0:02:49.5]} 13... Rc8 {[%clk 0:02:23.9]} 14. f4 {[%clk
0:02:47.6]} 14... Qb8 {[%clk 0:02:21.7]} 15. b3 {[%clk 0:02:42.5]} 15... g6
{[%clk 0:02:04.6]} 16. f5 {[%clk 0:02:30]} 16... gxf5 {[%clk 0:02:02.8]} 17.
exf5 {[%clk 0:02:29.6]} 17... e5 {[%clk 0:01:58.7]} 18. Nf3 {[%clk 0:02:22.5]}
18... Rg8 {[%clk 0:01:57.1]} 19. Kh2 {[%clk 0:02:20.6]} 19... Qa8 {[%clk
0:01:45.5]} 20. Rg1 {[%clk 0:02:14.1]} 20... Nc5 {[%clk 0:01:41]} 21. Nh4 {[%clk
0:02:02.2]} 21... Bxg2 {[%clk 0:01:36.6]} 22. Rxg2 {[%clk 0:02:03.1]} 22... Nce4
{[%clk 0:01:18.4]} 23. Nxe4 {[%clk 0:01:57]} 23... Nxe4 {[%clk 0:01:19.3]} 24.
Nf3 {[%clk 0:01:45.4]} 24... Qc6 {[%clk 0:01:12.6]} 25. Nd2 {[%clk 0:01:21.1]}
25... Nf6 {[%clk 0:00:45.4]} 26. Qf3 {[%clk 0:01:14.5]} 26... Qxf3 {[%clk
0:00:42.5]} 27. Nxf3 {[%clk 0:01:15.4]} 27... b5 {[%clk 0:00:43.2]} 28. Nd2
{[%clk 0:00:53.1]} 28... Kd7 {[%clk 0:00:39.4]} 29. Re2 {[%clk 0:00:50.3]} 29...
d5 {[%clk 0:00:37.7]} 30. Ree1 {[%clk 0:00:42.2]} 30... bxc4 {[%clk 0:00:34.9]}
31. bxc4 {[%clk 0:00:41.2]} 31... d4 {[%clk 0:00:32.9]} 32. Bf2 {[%clk
0:00:41.4]} 32... Bb4 {[%clk 0:00:33.2]} 33. Red1 {[%clk 0:00:38.3]} 33... Bxd2
{[%clk 0:00:29.4]} 34. Rxd2 {[%clk 0:00:38.8]} 34... Ne4 {[%clk 0:00:24.4]} 35.
Re2 {[%clk 0:00:38.9]} 35... Nxf2 {[%clk 0:00:23]} 36. Rxf2 {[%clk 0:00:39.8]}
36... f6 {[%clk 0:00:17.1]} 37. Re2 {[%clk 0:00:35.4]} 37... Rb8 {[%clk
0:00:16.8]} 38. Kg2 {[%clk 0:00:34.4]} 38... Kd6 {[%clk 0:00:15]} 39. Kf3 {[%clk
0:00:33.7]} 39... Kc5 {[%clk 0:00:14.4]} 40. g4 {[%clk 0:00:30.1]} 40... hxg4+
{[%clk 0:00:14.5]} 41. hxg4 {[%clk 0:00:30]} 41... Rb4 {[%clk 0:00:13.9]} 42.
Rec2 {[%clk 0:00:28.4]} 42... Rh8 {[%clk 0:00:12.9]} 43. Kg3 {[%clk 0:00:25.5]}
43... d3 {[%clk 0:00:08.4]} 44. Rc3 {[%clk 0:00:24.1]} 44... Kd4 {[%clk
0:00:06.9]} 45. c5 {[%clk 0:00:24.1]} 45... d2 {[%clk 0:00:07.2]} 46. c6 {[%clk
0:00:23.5]} 46... dxc1=Q {[%clk 0:00:06.9]} 47. Rxc1 {[%clk 0:00:24.4]} 47...
Rc8 {[%clk 0:00:06.5]} 48. c7 {[%clk 0:00:22.7]} 48... Rc4 {[%clk 0:00:06.5]}
49. Rd1+ {[%clk 0:00:22.3]} 49... Ke4 {[%clk 0:00:06.4]} 50. Rd6 {[%clk
0:00:21.3]} 50... R4xc7 {[%clk 0:00:05.4]} 51. Rxf6 {[%clk 0:00:21.4]} 51...
Rc3+ {[%clk 0:00:05.3]} 52. Kh4 {[%clk 0:00:20.8]} 52... Rh8+ {[%clk 0:00:05.5]}
53. Kg5 {[%clk 0:00:21.4]} 53... Rg8+ {[%clk 0:00:05.9]} 54. Rg6 {[%clk
0:00:21.8]} 54... Rxg6+ {[%clk 0:00:05.4]} 55. Kxg6 {[%clk 0:00:21.5]} 55... Kf4
{[%clk 0:00:05.6]} 56. g5 {[%clk 0:00:21]} 56... Rg3 {[%clk 0:00:05.1]} 57. f6
{[%clk 0:00:20.5]} 57... Rxg5+ {[%clk 0:00:05.3]} 58. Kh6 {[%clk 0:00:20.9]}
58... Rf5 {[%clk 0:00:05.5]} 59. Kg7 {[%clk 0:00:21.3]} 59... e4 {[%clk
0:00:05.9]} 60. f7 {[%clk 0:00:21.6]} 60... Rxf7+ {[%clk 0:00:06]} 61. Kxf7
{[%clk 0:00:21.3]} 61... e3 {[%clk 0:00:06.9]} 62. Ke6 {[%clk 0:00:22]} 62... e2
{[%clk 0:00:07.8]} 63. Kd5 {[%clk 0:00:22.4]} 63... e1=Q {[%clk 0:00:08.7]} 64.
Kc5 {[%clk 0:00:22.9]} 64... Qa5+ {[%clk 0:00:08.7]} 0-1

[Event "Late-Titled-Tuesday-Blitz-February-06-2024"]
[Site "Chess.com"]
[Date "2024.02.06"]
[Round "4"]
[White "Laico"]
[Black "ahkashefi2800"]
[Result "0-1"]
[WhiteElo "2373"]
[BlackElo "2532"]
[TimeControl "180+1"]
[EndTime "14:40:03 PST"]
[Termination "ahkashefi2800 won on time"]

1. e4 {[%clk 0:02:55.8]} 1... c6 {[%clk 0:03:00]} 2. d4 {[%clk 0:02:55.6]} 2...
d5 {[%clk 0:03:00.3]} 3. f3 {[%clk 0:02:56.5]} 3... dxe4 {[%clk 0:03:00]} 4.
fxe4 {[%clk 0:02:57.4]} 4... e5 {[%clk 0:02:56.2]} 5. Nf3 {[%clk 0:02:56.9]}
5... Be6 {[%clk 0:02:56.5]} 6. c3 {[%clk 0:02:53.2]} 6... Nd7 {[%clk 0:02:55.5]}
7. Bd3 {[%clk 0:02:51.2]} 7... Ngf6 {[%clk 0:02:55.3]} 8. O-O {[%clk 0:02:51.1]}
8... Bd6 {[%clk 0:02:55.5]} 9. Bg5 {[%clk 0:02:49.6]} 9... Qc7 {[%clk
0:02:55.6]} 10. Nbd2 {[%clk 0:02:48.7]} 10... h6 {[%clk 0:02:55.9]} 11. Bh4
{[%clk 0:02:45.8]} 11... O-O-O {[%clk 0:02:56.1]} 12. Qa4 {[%clk 0:02:33]} 12...
Kb8 {[%clk 0:02:55.4]} 13. Bf2 {[%clk 0:02:33.1]} 13... Ng4 {[%clk 0:02:52.3]}
14. Bg3 {[%clk 0:02:20]} 14... exd4 {[%clk 0:02:35.2]} 15. Bxd6 {[%clk
0:02:18.3]} 15... Qxd6 {[%clk 0:02:33.7]} 16. cxd4 {[%clk 0:02:17.9]} 16... Nc5
{[%clk 0:02:28.5]} 17. Qa3 {[%clk 0:02:03]} 17... Nxd3 {[%clk 0:02:22.9]} 18.
Qxd3 {[%clk 0:02:03.9]} 18... Qc7 {[%clk 0:02:19.9]} 19. b4 {[%clk 0:01:54.2]}
19... Qb6 {[%clk 0:02:19.4]} 20. Qc3 {[%clk 0:01:44.8]} 20... Nf6 {[%clk
0:02:11.7]} 21. a4 {[%clk 0:01:42.6]} 21... a6 {[%clk 0:02:10.5]} 22. Kh1 {[%clk
0:01:37.3]} 22... Rhe8 {[%clk 0:02:09.3]} 23. Rfb1 {[%clk 0:01:35.4]} 23... Bg4
{[%clk 0:02:09.3]} 24. b5 {[%clk 0:01:23]} 24... cxb5 {[%clk 0:02:01]} 25. axb5
{[%clk 0:01:23.9]} 25... a5 {[%clk 0:02:01.3]} 26. Rxa5 {[%clk 0:01:18.1]} 26...
Rc8 {[%clk 0:01:52.6]} 27. Qa3 {[%clk 0:01:13.4]} 27... Bxf3 {[%clk 0:01:50]}
28. gxf3 {[%clk 0:00:46.7]} 28... Rc2 {[%clk 0:01:47.9]} 29. Ra8+ {[%clk
0:00:19.9]} 29... Kc7 {[%clk 0:01:46.5]} 30. Rc1 {[%clk 0:00:20.6]} 30... Rxc1+
{[%clk 0:01:30.3]} 31. Qxc1+ {[%clk 0:00:21.5]} 31... Kd7 {[%clk 0:01:30.5]} 32.
Nc4 {[%clk 0:00:21.4]} 32... Qxd4 {[%clk 0:01:25.5]} 33. Ra2 {[%clk 0:00:21.3]}
33... Qc5 {[%clk 0:01:08.1]} 34. Rd2+ {[%clk 0:00:18.7]} 34... Ke7 {[%clk
0:01:08.4]} 35. Rc2 {[%clk 0:00:15.4]} 35... Rd8 {[%clk 0:01:03.3]} 36. Ne3
{[%clk 0:00:15]} 36... Qxb5 {[%clk 0:00:59.2]} 37. Qa3+ {[%clk 0:00:14]} 37...
Ke8 {[%clk 0:00:56.3]} 38. Kg2 {[%clk 0:00:10.8]} 38... Qg5+ {[%clk 0:00:54.2]}
39. Kf2 {[%clk 0:00:10.3]} 39... Qh4+ {[%clk 0:00:54.4]} 40. Kg1 {[%clk
0:00:09.8]} 40... Qe1+ {[%clk 0:00:53.2]} 41. Kg2 {[%clk 0:00:09.4]} 41... Rd2+
{[%clk 0:00:51.1]} 42. Rxd2 {[%clk 0:00:09.1]} 42... Qxd2+ {[%clk 0:00:51.3]}
43. Kg3 {[%clk 0:00:09.6]} 43... Nh5+ {[%clk 0:00:45]} 44. Kg4 {[%clk
0:00:07.9]} 44... Qd7+ {[%clk 0:00:38.4]} 45. Nf5 {[%clk 0:00:04.2]} 45... Nf6+
{[%clk 0:00:32.1]} 46. Kg3 {[%clk 0:00:03.1]} 46... Qc7+ {[%clk 0:00:28.4]} 47.
Kh3 {[%clk 0:00:01.7]} 47... g6 {[%clk 0:00:15.4]} 48. Qa8+ {[%clk 0:00:02.2]}
48... Kd7 {[%clk 0:00:10.3]} 49. Qa4+ {[%clk 0:00:02.5]} 49... Qc6 {[%clk
0:00:10.3]} 50. Qd4+ {[%clk 0:00:02.9]} 50... Kc7 {[%clk 0:00:03.2]} 51. Ne3
{[%clk 0:00:03.4]} 51... Qd7+ {[%clk 0:00:03.1]} 52. Kg2 {[%clk 0:00:03.2]}
52... Qxd4 {[%clk 0:00:03.3]} 0-1

[Event "Late-Titled-Tuesday-Blitz-February-06-2024"]
[Site "Chess.com"]
[Date "2024.02.06"]
[Round "4"]
[White "Baronessa08"]
[Black "GadimbayliA"]
[Result "0-1"]
[WhiteElo "2523"]
[BlackElo "2807"]
[TimeControl "180+1"]
[EndTime "14:40:09 PST"]
[Termination "GadimbayliA won by resignation"]

1. Nf3 {[%clk 0:03:00.9]} 1... Nf6 {[%clk 0:02:16.4]} 2. d4 {[%clk 0:02:59]}
2... d5 {[%clk 0:02:16.2]} 3. c4 {[%clk 0:02:58.7]} 3... e6 {[%clk 0:02:15]} 4.
Nc3 {[%clk 0:02:57.7]} 4... Nc6 {[%clk 0:02:13.8]} 5. cxd5 {[%clk 0:02:52.6]}
5... exd5 {[%clk 0:02:14.7]} 6. Bg5 {[%clk 0:02:51.2]} 6... Be6 {[%clk
0:02:12.9]} 7. e3 {[%clk 0:02:50.5]} 7... Bb4 {[%clk 0:02:13.2]} 8. Bd3 {[%clk
0:02:49.8]} 8... h6 {[%clk 0:02:13.4]} 9. Bxf6 {[%clk 0:02:47.7]} 9... Qxf6
{[%clk 0:02:14.3]} 10. h3 {[%clk 0:02:43.6]} 10... O-O {[%clk 0:02:12.6]} 11.
O-O {[%clk 0:02:42.6]} 11... Ne7 {[%clk 0:02:04.6]} 12. Rc1 {[%clk 0:02:37.8]}
12... c6 {[%clk 0:02:03.1]} 13. Ne5 {[%clk 0:02:37.2]} 13... Bf5 {[%clk
0:01:58.5]} 14. Bxf5 {[%clk 0:02:33.2]} 14... Qxf5 {[%clk 0:01:59.4]} 15. Qc2
{[%clk 0:02:29.7]} 15... Qe6 {[%clk 0:01:57.8]} 16. Ne2 {[%clk 0:02:22.8]} 16...
Bd6 {[%clk 0:01:52.2]} 17. Nf4 {[%clk 0:02:22.7]} 17... Qc8 {[%clk 0:01:48.6]}
18. Nfd3 {[%clk 0:02:16.9]} 18... f6 {[%clk 0:01:48.7]} 19. Nf3 {[%clk
0:02:14.5]} 19... Re8 {[%clk 0:01:44.6]} 20. Rfe1 {[%clk 0:02:05.5]} 20... Nf5
{[%clk 0:01:44.5]} 21. Nc5 {[%clk 0:01:56.9]} 21... Bxc5 {[%clk 0:01:44.9]} 22.
Qxc5 {[%clk 0:01:55.7]} 22... Qd7 {[%clk 0:01:42.9]} 23. b4 {[%clk 0:01:54.8]}
23... Nd6 {[%clk 0:01:43.3]} 24. Qc3 {[%clk 0:01:48.2]} 24... Kf7 {[%clk
0:01:41.8]} 25. Nd2 {[%clk 0:01:47.7]} 25... Re7 {[%clk 0:01:37.8]} 26. f3
{[%clk 0:01:36.3]} 26... Rae8 {[%clk 0:01:37.6]} 27. Re2 {[%clk 0:01:27.8]}
27... Qf5 {[%clk 0:01:36.4]} 28. Rce1 {[%clk 0:01:24.5]} 28... Qg6 {[%clk
0:01:34.4]} 29. a4 {[%clk 0:01:12.9]} 29... Nf5 {[%clk 0:01:27.6]} 30. b5 {[%clk
0:01:05.5]} 30... Re6 {[%clk 0:01:16.8]} 31. bxc6 {[%clk 0:00:57.6]} 31... bxc6
{[%clk 0:01:17.7]} 32. a5 {[%clk 0:00:57.2]} 32... Ng3 {[%clk 0:01:07.3]} 33.
Rf2 {[%clk 0:00:56.9]} 33... Nf5 {[%clk 0:01:07.7]} 34. Rfe2 {[%clk 0:00:57.2]}
34... Ng3 {[%clk 0:01:08.1]} 35. Rf2 {[%clk 0:00:57.5]} 35... Qg5 {[%clk
0:01:08.7]} 36. e4 {[%clk 0:00:32.5]} 36... dxe4 {[%clk 0:00:57.1]} 37. fxe4
{[%clk 0:00:26.8]} 37... Nxe4 {[%clk 0:00:56.9]} 38. Nxe4 {[%clk 0:00:26.6]}
38... Rxe4 {[%clk 0:00:57.8]} 39. Rxe4 {[%clk 0:00:26.3]} 39... Rxe4 {[%clk
0:00:58.7]} 40. Qxc6 {[%clk 0:00:25]} 40... Re1+ {[%clk 0:00:34.1]} 41. Kh2
{[%clk 0:00:25.2]} 41... Qxa5 {[%clk 0:00:34.6]} 42. Qd7+ {[%clk 0:00:13.8]}
42... Re7 {[%clk 0:00:20.7]} 43. Qc6 {[%clk 0:00:14]} 43... Qc7+ {[%clk
0:00:18.2]} 44. Qxc7 {[%clk 0:00:14]} 44... Rxc7 {[%clk 0:00:19.1]} 45. Ra2
{[%clk 0:00:14.1]} 45... Rd7 {[%clk 0:00:18.4]} 46. Ra6 {[%clk 0:00:13.8]} 46...
Kg6 {[%clk 0:00:16.4]} 47. Kg3 {[%clk 0:00:13.9]} 47... Kf5 {[%clk 0:00:15.6]}
48. Kf3 {[%clk 0:00:14.4]} 48... h5 {[%clk 0:00:16.4]} 49. Ra5+ {[%clk
0:00:11.1]} 49... Ke6 {[%clk 0:00:16.5]} 50. Rxh5 {[%clk 0:00:10.2]} 50... Rxd4
{[%clk 0:00:16.2]} 51. Ra5 {[%clk 0:00:10.8]} 51... Rd7 {[%clk 0:00:16.6]} 52.
Kg4 {[%clk 0:00:09.9]} 52... Kd6 {[%clk 0:00:16.1]} 53. Kh5 {[%clk 0:00:10]}
53... Kc6 {[%clk 0:00:16.4]} 54. g4 {[%clk 0:00:08.9]} 54... Kb6 {[%clk
0:00:15.8]} 55. Ra3 {[%clk 0:00:08.7]} 55... a5 {[%clk 0:00:16.2]} 56. Kg6
{[%clk 0:00:08.7]} 56... Kb5 {[%clk 0:00:16.1]} 57. h4 {[%clk 0:00:08.8]} 57...
a4 {[%clk 0:00:15.2]} 58. Ra1 {[%clk 0:00:07.9]} 58... Kb4 {[%clk 0:00:14.7]}
59. Rb1+ {[%clk 0:00:07.8]} 59... Kc3 {[%clk 0:00:15.2]} 60. Rc1+ {[%clk
0:00:08.2]} 60... Kb2 {[%clk 0:00:15.5]} 61. Rc6 {[%clk 0:00:07.4]} 61... Rb7
{[%clk 0:00:13.7]} 62. Ra6 {[%clk 0:00:05.8]} 62... a3 {[%clk 0:00:14]} 0-1

[Event "Late-Titled-Tuesday-Blitz-February-06-2024"]
[Site "Chess.com"]
[Date "2024.02.06"]
[Round "4"]
[White "FrenchMonster2002"]
[Black "trriinu"]
[Result "0-1"]
[WhiteElo "2449"]
[BlackElo "2225"]
[TimeControl "180+1"]
[EndTime "14:40:13 PST"]
[Termination "trriinu won by checkmate"]

1. e4 {[%clk 0:03:00.9]} 1... d5 {[%clk 0:02:59.1]} 2. exd5 {[%clk 0:02:51]}
2... Qxd5 {[%clk 0:03:00]} 3. Nf3 {[%clk 0:02:51.7]} 3... Bg4 {[%clk 0:02:59.6]}
4. Be2 {[%clk 0:02:52.4]} 4... Nf6 {[%clk 0:02:59.4]} 5. d4 {[%clk 0:02:52.8]}
5... e6 {[%clk 0:02:56.9]} 6. c4 {[%clk 0:02:53.2]} 6... Qd6 {[%clk 0:02:57]} 7.
Nc3 {[%clk 0:02:52.8]} 7... Nc6 {[%clk 0:02:57.1]} 8. Be3 {[%clk 0:02:45.4]}
8... O-O-O {[%clk 0:02:56]} 9. O-O {[%clk 0:02:16.2]} 9... Bxf3 {[%clk
0:02:48.9]} 10. Bxf3 {[%clk 0:02:17.1]} 10... Nxd4 {[%clk 0:02:49.2]} 11. Bxd4
{[%clk 0:02:16.9]} 11... Qxd4 {[%clk 0:02:49]} 12. Qa4 {[%clk 0:02:11.8]} 12...
Qb6 {[%clk 0:02:44.2]} 13. b4 {[%clk 0:01:56.5]} 13... Rd4 {[%clk 0:01:35.4]}
14. c5 {[%clk 0:01:06.7]} 14... Bxc5 {[%clk 0:00:33.5]} 15. bxc5 {[%clk
0:01:03.1]} 15... Qxc5 {[%clk 0:00:33.8]} 16. Qb3 {[%clk 0:00:46]} 16... Rb4
{[%clk 0:00:30.7]} 17. Qa3 {[%clk 0:00:43.8]} 17... Rc4 {[%clk 0:00:18.5]} 18.
Qxc5 {[%clk 0:00:39.7]} 18... Rxc5 {[%clk 0:00:18.6]} 19. Rac1 {[%clk
0:00:40.2]} 19... c6 {[%clk 0:00:16.5]} 20. Rfd1 {[%clk 0:00:18]} 20... Rd8
{[%clk 0:00:11]} 21. Rxd8+ {[%clk 0:00:17.1]} 21... Kxd8 {[%clk 0:00:11.4]} 22.
Kf1 {[%clk 0:00:13.2]} 22... Nd5 {[%clk 0:00:06.5]} 23. Ne2 {[%clk 0:00:11]}
23... Ra5 {[%clk 0:00:05.7]} 24. Bxd5 {[%clk 0:00:05.8]} 24... exd5 {[%clk
0:00:06.6]} 25. Rc2 {[%clk 0:00:05.3]} 25... Kd7 {[%clk 0:00:06.2]} 26. Nc1
{[%clk 0:00:05.3]} 26... Kd6 {[%clk 0:00:05.4]} 27. Ke2 {[%clk 0:00:05.1]} 27...
c5 {[%clk 0:00:05.4]} 28. Nb3 {[%clk 0:00:04.9]} 28... Rb5 {[%clk 0:00:05.7]}
29. Nd2 {[%clk 0:00:05.2]} 29... a5 {[%clk 0:00:04.2]} 30. f4 {[%clk 0:00:05.1]}
30... a4 {[%clk 0:00:04.5]} 31. Nf3 {[%clk 0:00:05.2]} 31... Rb4 {[%clk
0:00:04.1]} 32. g3 {[%clk 0:00:05.4]} 32... Re4+ {[%clk 0:00:04.4]} 33. Kd3
{[%clk 0:00:05.9]} 33... b5 {[%clk 0:00:04.7]} 34. Ne5 {[%clk 0:00:06.2]} 34...
f6 {[%clk 0:00:04.3]} 35. Nf3 {[%clk 0:00:06.7]} 35... c4+ {[%clk 0:00:04.4]}
36. Kd2 {[%clk 0:00:07.1]} 36... Kc5 {[%clk 0:00:04.5]} 37. Rc1 {[%clk
0:00:04.9]} 37... d4 {[%clk 0:00:04.8]} 38. Rb1 {[%clk 0:00:04.3]} 38... c3+
{[%clk 0:00:04.9]} 39. Kd1 {[%clk 0:00:03]} 39... Re3 {[%clk 0:00:04.5]} 40. Ne1
{[%clk 0:00:02.6]} 40... b4 {[%clk 0:00:04.3]} 41. Nc2 {[%clk 0:00:01.8]} 41...
Rd3+ {[%clk 0:00:04.7]} 42. Kc1 {[%clk 0:00:01.8]} 42... b3 {[%clk 0:00:04]} 43.
axb3 {[%clk 0:00:02.1]} 43... axb3 {[%clk 0:00:04.4]} 44. Rxb3 {[%clk 0:00:03]}
44... Rd2 {[%clk 0:00:04.9]} 45. Ra3 {[%clk 0:00:03.1]} 45... Rxh2 {[%clk
0:00:04.9]} 46. Ra4 {[%clk 0:00:02.8]} 46... Rh1+ {[%clk 0:00:04.8]} 47. Ne1
{[%clk 0:00:02.4]} 47... Rxe1+ {[%clk 0:00:04.2]} 48. Kc2 {[%clk 0:00:03.3]}
48... Re2+ {[%clk 0:00:04.4]} 49. Kd3 {[%clk 0:00:03.6]} 49... Rd2+ {[%clk
0:00:04.9]} 50. Ke4 {[%clk 0:00:04.3]} 50... c2 {[%clk 0:00:05.4]} 51. Ra8
{[%clk 0:00:03.7]} 51... Kb4 {[%clk 0:00:04.9]} 52. Rc8 {[%clk 0:00:03.5]} 52...
Kb3 {[%clk 0:00:04.1]} 53. Rb8+ {[%clk 0:00:03.6]} 53... Kc3 {[%clk 0:00:04.2]}
54. Rc8+ {[%clk 0:00:04.5]} 54... Kb2 {[%clk 0:00:04.6]} 55. Rb8+ {[%clk
0:00:04.2]} 55... Kc1 {[%clk 0:00:05.1]} 56. Rc8 {[%clk 0:00:05.1]} 56... Kd1
{[%clk 0:00:05.5]} 57. f5 {[%clk 0:00:05.1]} 57... c1=Q {[%clk 0:00:05.1]} 58.
Rxc1+ {[%clk 0:00:06]} 58... Kxc1 {[%clk 0:00:05.4]} 59. g4 {[%clk 0:00:06.9]}
59... Re2+ {[%clk 0:00:05.7]} 60. Kd5 {[%clk 0:00:07.5]} 60... d3 {[%clk
0:00:06.1]} 61. Kd6 {[%clk 0:00:07.8]} 61... d2 {[%clk 0:00:06.6]} 62. g5 {[%clk
0:00:08.7]} 62... d1=Q+ {[%clk 0:00:06.5]} 63. Kc5 {[%clk 0:00:09.6]} 63... Rc2+
{[%clk 0:00:07]} 64. Kb4 {[%clk 0:00:09.8]} 64... Kd2 {[%clk 0:00:07.4]} 65. Ka3
{[%clk 0:00:10.7]} 65... Qb1 {[%clk 0:00:08]} 66. Ka4 {[%clk 0:00:10]} 66...
Ra2# {[%clk 0:00:08.9]} 0-1

[Event "Late-Titled-Tuesday-Blitz-February-06-2024"]
[Site "Chess.com"]
[Date "2024.02.06"]
[Round "4"]
[White "NowInChess"]
[Black "SocoLoco"]
[Result "1/2-1/2"]
[WhiteElo "2323"]
[BlackElo "2180"]
[TimeControl "180+1"]
[EndTime "14:40:26 PST"]
[Termination "Game drawn by repetition"]

1. e4 {[%clk 0:03:00.9]} 1... c5 {[%clk 0:02:59]} 2. d3 {[%clk 0:03:01]} 2... d5
{[%clk 0:02:58]} 3. Nd2 {[%clk 0:03:00.4]} 3... f5 {[%clk 0:02:57.2]} 4. exd5
{[%clk 0:02:52.6]} 4... Qxd5 {[%clk 0:02:56.8]} 5. Ngf3 {[%clk 0:02:39.7]} 5...
Nc6 {[%clk 0:02:55.5]} 6. Be2 {[%clk 0:02:35.9]} 6... Nf6 {[%clk 0:02:54.5]} 7.
O-O {[%clk 0:02:32.1]} 7... e5 {[%clk 0:02:54.1]} 8. Re1 {[%clk 0:02:27.1]} 8...
Be7 {[%clk 0:02:50.9]} 9. Bf1 {[%clk 0:02:25.1]} 9... O-O {[%clk 0:02:48.1]} 10.
Nc4 {[%clk 0:02:10.8]} 10... Bd6 {[%clk 0:02:15.8]} 11. Nxd6 {[%clk 0:01:46.8]}
11... Qxd6 {[%clk 0:02:16.7]} 12. g3 {[%clk 0:01:36]} 12... h6 {[%clk
0:02:14.7]} 13. Bg2 {[%clk 0:01:35.4]} 13... Be6 {[%clk 0:02:12]} 14. Qe2 {[%clk
0:01:32.6]} 14... Nd7 {[%clk 0:02:07.3]} 15. c3 {[%clk 0:01:26]} 15... Bd5
{[%clk 0:02:01.8]} 16. Bd2 {[%clk 0:01:18.7]} 16... Rad8 {[%clk 0:01:54.9]} 17.
Rad1 {[%clk 0:01:15.2]} 17... Rfe8 {[%clk 0:01:54.3]} 18. Bc1 {[%clk 0:01:09.6]}
18... b5 {[%clk 0:01:44]} 19. a4 {[%clk 0:01:07.8]} 19... a6 {[%clk 0:01:43.4]}
20. axb5 {[%clk 0:01:08.1]} 20... axb5 {[%clk 0:01:44.3]} 21. Nh4 {[%clk
0:00:47.5]} 21... Bxg2 {[%clk 0:01:45.2]} 22. Kxg2 {[%clk 0:00:24.9]} 22... Qf6
{[%clk 0:01:37.6]} 23. Qf3 {[%clk 0:00:18]} 23... Rf8 {[%clk 0:01:28.4]} 24.
Qd5+ {[%clk 0:00:12.3]} 24... Kh7 {[%clk 0:01:10.6]} 25. Qb3 {[%clk 0:00:10.6]}
25... Rb8 {[%clk 0:01:02]} 26. Nf3 {[%clk 0:00:09.1]} 26... Rfd8 {[%clk
0:00:55.7]} 27. Qa2 {[%clk 0:00:08]} 27... Nb6 {[%clk 0:00:48.2]} 28. Be3 {[%clk
0:00:07.5]} 28... Qd6 {[%clk 0:00:45.3]} 29. Qa3 {[%clk 0:00:06.1]} 29... Nd7
{[%clk 0:00:28.5]} 30. d4 {[%clk 0:00:05.3]} 30... b4 {[%clk 0:00:23]} 31. cxb4
{[%clk 0:00:04.8]} 31... cxb4 {[%clk 0:00:21]} 32. Qc3 {[%clk 0:00:04.1]} 32...
e4 {[%clk 0:00:17.5]} 33. Qd2 {[%clk 0:00:03.2]} 33... exf3+ {[%clk 0:00:15.9]}
34. Kxf3 {[%clk 0:00:04.1]} 34... Qd5+ {[%clk 0:00:16.2]} 35. Ke2 {[%clk
0:00:04.3]} 35... Nf6 {[%clk 0:00:16.5]} 36. Kf1 {[%clk 0:00:03.9]} 36... Ne4
{[%clk 0:00:17]} 37. Qc2 {[%clk 0:00:04.1]} 37... Ne7 {[%clk 0:00:15.6]} 38. Bf4
{[%clk 0:00:02.6]} 38... Rbc8 {[%clk 0:00:14.8]} 39. Qb1 {[%clk 0:00:01.8]}
39... Ng5 {[%clk 0:00:14.8]} 40. Be5 {[%clk 0:00:02.3]} 40... Qh1+ {[%clk
0:00:13.9]} 41. Ke2 {[%clk 0:00:02.5]} 41... Qe4+ {[%clk 0:00:14.3]} 42. Kf1
{[%clk 0:00:02.5]} 42... Qxb1 {[%clk 0:00:13.7]} 43. Rxb1 {[%clk 0:00:03.4]}
43... Rc2 {[%clk 0:00:13.3]} 44. h4 {[%clk 0:00:03.4]} 44... Ne4 {[%clk
0:00:13]} 45. Re2 {[%clk 0:00:03.5]} 45... Rdc8 {[%clk 0:00:12.5]} 46. Ra1
{[%clk 0:00:03]} 46... Rxe2 {[%clk 0:00:11.7]} 47. Kxe2 {[%clk 0:00:03.9]} 47...
Rc2+ {[%clk 0:00:11]} 48. Ke1 {[%clk 0:00:04.2]} 48... Rxb2 {[%clk 0:00:11.1]}
49. Ra7 {[%clk 0:00:04.7]} 49... Rb1+ {[%clk 0:00:10.7]} 50. Ke2 {[%clk
0:00:04.2]} 50... Kg6 {[%clk 0:00:08.1]} 51. Rxe7 {[%clk 0:00:03.3]} 51... Kh5
{[%clk 0:00:09]} 52. Rxg7 {[%clk 0:00:03.2]} 52... Nc3+ {[%clk 0:00:07.7]} 53.
Kd2 {[%clk 0:00:03.1]} 53... Nd5 {[%clk 0:00:08.6]} 54. f3 {[%clk 0:00:03]}
54... b3 {[%clk 0:00:09.5]} 55. g4+ {[%clk 0:00:03.2]} 55... fxg4 {[%clk
0:00:09.2]} 56. fxg4+ {[%clk 0:00:04.1]} 56... Kxh4 {[%clk 0:00:09.6]} 57. Rg6
{[%clk 0:00:04.2]} 57... Kh3 {[%clk 0:00:07.5]} 58. Rxh6+ {[%clk 0:00:04.3]}
58... Kg2 {[%clk 0:00:08.4]} 59. g5 {[%clk 0:00:03.9]} 59... Ne7 {[%clk
0:00:09]} 60. d5 {[%clk 0:00:03.6]} 60... Nf5 {[%clk 0:00:09.7]} 61. Rh5 {[%clk
0:00:03.4]} 61... b2 {[%clk 0:00:10.1]} 62. g6 {[%clk 0:00:04.3]} 62... Rd1+
{[%clk 0:00:09.7]} 63. Kxd1 {[%clk 0:00:04.2]} 63... b1=Q+ {[%clk 0:00:10.4]}
64. Kd2 {[%clk 0:00:04.5]} 64... Ne7 {[%clk 0:00:09.4]} 65. Rg5+ {[%clk
0:00:04.9]} 65... Kf3 {[%clk 0:00:08.3]} 66. g7 {[%clk 0:00:05.8]} 66... Ke4
{[%clk 0:00:08.1]} 67. g8=Q {[%clk 0:00:05.6]} 67... Qd3+ {[%clk 0:00:08.5]} 68.
Ke1 {[%clk 0:00:05.1]} 68... Qe3+ {[%clk 0:00:08.8]} 69. Kf1 {[%clk 0:00:05.3]}
69... Qf3+ {[%clk 0:00:09]} 70. Kg1 {[%clk 0:00:05.6]} 70... Qe3+ {[%clk
0:00:06.8]} 71. Kf1 {[%clk 0:00:05.3]} 71... Qf3+ {[%clk 0:00:06.8]} 72. Kg1
{[%clk 0:00:05]} 72... Qe3+ {[%clk 0:00:06.5]} 73. Kh1 {[%clk 0:00:05.1]} 73...
Qh3+ {[%clk 0:00:06.5]} 74. Kg1 {[%clk 0:00:04.9]} 74... Qe3+ {[%clk 0:00:06.6]}
1/2-1/2